fUSD/lending_fUSD_20240921
["ID","MTS","AMOUNT","RATE_DAILY","PERIOD"]
[338812115,1726924247306,-150.0,0.00014955,2]
[338812117,1726924247316,-150.0,0.00014961,2]
[338812118,1726924247326,-150.0,0.00014965,2]
[338812119,1726924247335,-150.0,0.0001497,2]
[338812120,1726924247345,-150.0,0.00014974,2]
[338812122,1726924247355,-150.0,0.00014974,2]
[338812124,1726924247364,-150.0,0.00014983,2]
[338812126,1726924247374,-150.0,0.00014985,2]
[338812128,1726924247385,-150.0,0.0001499,2]
[338812130,1726924247394,-150.0,0.00014998,2]
[338812132,1726924247404,-2586.7417447,0.00015,30]
[338812134,1726924247416,-518.40667628,0.00015,30]
[338812137,1726924247428,-456.95008335,0.00015,30]
[338812139,1726924247444,-26977.16239601,0.00015,30]
[338812142,1726924247455,-4717.28541024,0.00015,30]
[338812144,1726924247467,-400.57,0.00015,30]
[338812146,1726924247479,-2999.90287072,0.00015,30]
[338812148,1726924247491,-2399.79397156,0.00015,30]
[338812151,1726924247502,-3075.0,0.00015,30]
[338812153,1726924247513,-20754.41174048,0.00015,30]
[338812155,1726924247524,-852.18109769,0.00015,30]
[338812157,1726924247536,-4434.87946831,0.00015,30]
[338812159,1726924247547,-755.02521014,0.00015,30]
[338812161,1726924247559,-585.22668101,0.00015,30]
[338812163,1726924247570,-1346.51356479,0.00015,30]
[338812165,1726924247582,-4011.40893523,0.00015,30]
[338812168,1726924247594,-267.22567297,0.00015,30]
[338812170,1726924247605,-12686.94533639,0.00015,30]
[338812172,1726924247617,-432.05724792,0.00015,30]
[338812174,1726924247629,-35993.77023877,0.00015,30]
[338812177,1726924247640,-16288.40638518,0.00015,30]
[338812179,1726924247652,-1455.65893806,0.00015,30]
[338813605,1726924262512,204.88,0.00010959,2]
[338814026,1726924317530,500.0,0.00011164,2]
[338814027,1726924323687,500.0,0.00011164,2]
[338814029,1726924378194,212.86,0.00011958,2]
[338814053,1726924474203,329.26997148,0.00011164,2]
[338814054,1726924492841,500.0,0.00011164,2]
[338814055,1726924676798,12434.8659989,6.781e-05,7]
[338814063,1726924919442,226.53,0.00011416,2]
[338814064,1726924920003,1050.0,0.00011,2]
[338814066,1726924989546,1242.32444338,0.00013,30]
[338814067,1726925150790,450.0,0.0001203,2]
[338814069,1726925180829,500.0,0.0001203,2]
[338814070,1726925292788,350.0,0.0001203,3]
[338814072,1726925329686,465.43,0.0001203,3]
[338814078,1726925432205,-151.0,0.00012741,2]
[338814080,1726925432215,-1000.0,0.0001282,2]
[338814081,1726925432224,-250.0,0.00012842,2]
[338814082,1726925432233,-6275.8262812,0.000129,2]
[338814083,1726925432242,-100.07320447,0.000129,2]
[338814084,1726925432253,-225.27940739,0.000129,2]
[338814085,1726925432262,-300.0,0.00012972,2]
[338814086,1726925432272,-400.38227572,0.00012973,2]
[338814087,1726925432281,-160.0,0.00012973,2]
[338814088,1726925432290,-368.51571393,0.00012973,2]
[338814089,1726925432308,-231.48428607,0.00012973,2]
[338814090,1726925432317,-174.97667785,0.00012973,2]
[338814091,1726925432329,-21.38009354,0.00012973,2]
[338814092,1726925432338,-500.0,0.00012973,2]
[338814093,1726925432347,-33.86890646,0.00012973,2]
[338814094,1726925432358,-466.13109354,0.00012973,2]
[338814095,1726925432367,-150.56,0.0001299,2]
[338814096,1726925432376,-150.56,0.0001299,2]
[338814097,1726925432386,-386.87063074,0.0001299,2]
[338814098,1726925432395,-386.87063074,0.0001299,2]
[338814099,1726925432404,-386.87063074,0.0001299,2]
[338814100,1726925432414,-500.0,0.00012999,2]
[338814101,1726925432422,-478.61586289,0.00012999,2]
[338814102,1726925432432,-500.0,0.00012999,2]
[338814103,1726925432441,-500.0,0.00012999,2]
[338814104,1726925432450,-425.47006584,0.00012999,2]
[338814105,1726925432459,-175.11472464,0.00013,2]
[338814106,1726925432471,-404.0,0.00013,2]
[338814107,1726925432482,-399.31673592,0.00013,2]
[338814108,1726925432493,-1249.78872132,0.00013,2]
[338814109,1726925432505,-9669.50989184,0.00013,2]
[338814110,1726925432516,-752.17210597,0.00013,2]
[338814113,1726925432527,-35069.8697786,0.00013,2]
[338814115,1726925432538,-2700.0,0.00013,2]
[338814116,1726925432549,-845.87545876,0.00013,2]
[338814117,1726925432563,-1028.79,0.00013,2]
[338814118,1726925432575,-3186.53480063,0.00013,2]
[338814119,1726925432586,-6036.6456329,0.00013,2]
[338814120,1726925432601,-588.36553849,0.00013,2]
[338814121,1726925432613,-8754.14981293,0.00013,2]
[338814122,1726925432626,-1674.56555788,0.00013,2]
[338814123,1726925438270,-1169.55400002,0.00013,2]
[338814124,1726925438283,-320.76810561,0.00013,2]
[338814125,1726925438327,-521.17192969,0.00013,2]
[338814126,1726925438386,-1804763.63274568,0.00013,2]
[338814127,1726925438397,-424.79146568,0.00013,2]
[338814128,1726925438410,-526.17759152,0.00013,2]
[338814129,1726925438445,-960688.28600703,0.00013,2]
[338814130,1726925438506,-9484.0,0.00013,2]
[338814131,1726925438563,-75572.31240825,0.00013,2]
[338814132,1726925438574,-353.01173433,0.00013,2]
[338814133,1726925438584,-13593.5279083,0.00013,2]
[338814134,1726925438626,-5811.84764848,0.00013,2]
[338814263,1726925440200,-3162.60000008,0.00013,2]
[338814265,1726925440212,-2268.5,0.00013,2]
[338814268,1726925440225,-65076.82359592,0.00013,2]
[338814300,1726925440519,-222171.35066025,0.00013,2]
[338814302,1726925440530,-1844.94999997,0.00013,2]
[338814304,1726925440541,-959.24343264,0.00013,2]
[338814306,1726925440552,-2616.92533353,0.00013,2]
[338814308,1726925440563,-1352.59422969,0.00013,2]
[338814310,1726925440574,-330.37194728,0.00013,2]
[338814312,1726925440585,-2408.76417884,0.00013,2]
[338814314,1726925440597,-1015.75187423,0.00013,2]
[338814316,1726925440609,-7419.21920943,0.00013,2]
[338814318,1726925440622,-1200.74306901,0.00013,2]
[338814320,1726925440636,-3323272.25645561,0.00013,2]
[338814322,1726925440646,-3323725.14097281,0.00013,2]
[338814324,1726925440656,-4471.01733101,0.00013,2]
[338814326,1726925440666,-172.30626755,0.00013069,2]
[338814328,1726925440675,-15441.58750446,0.00013269,2]
[338814330,1726925440685,-151.16962535,0.00013269,2]
[338814332,1726925440695,-172.30626749,0.00013331,2]
[338814334,1726925440704,-250.0,0.00013369,2]
[338814336,1726925440713,-173.81,0.00013417,2]
[338814337,1726925440723,-574.14,0.00013417,2]
[338814339,1726925440732,-528.84,0.00013417,2]
[338814341,1726925440742,-15441.58750443,0.0001345,2]
[338814343,1726925440752,-299.99,0.0001345,2]
[338814345,1726925440762,-499.99,0.0001345,2]
[338814347,1726925440771,-172.30626749,0.00013592,2]
[338814349,1726925440781,-15441.58750443,0.00013631,2]
[338814351,1726925440791,-226.53,0.0001368,2]
[338814353,1726925440800,-150.0,0.00013699,2]
[338814355,1726925440809,-539.98288458,0.00013773,2]
[338814357,1726925440819,-829.97,0.00013773,2]
[338814359,1726925440829,-15441.58750443,0.00013813,2]
[338814361,1726925440838,-172.30626749,0.00013854,2]
[338814363,1726925440848,-241.87,0.00013867,2]
[338814365,1726925440858,-575.21,0.00013867,2]
[338814367,1726925440868,-499.5489,0.00013873,2]
[338814369,1726925440877,-150.78,0.00013873,2]
[338814371,1726925440887,-6940.01654147,0.00013875,2]
[338814373,1726925440896,-183.23042379,0.000139,2]
[338814375,1726925440905,-308429.65773,0.000139,3]
[338814377,1726925440914,-6275.8262812,0.000139,2]
[338814379,1726925440924,-325.35261186,0.000139,2]
[338814381,1726925440933,-500.0,0.00013904,2]
[338814383,1726925440942,-151.77,0.00013918,30]
[338814385,1726925440952,-160.49828905,0.0001395,2]
[338814387,1726925440961,-15441.58750443,0.00013994,2]
[338814389,1726925440971,-400.0,0.00014,4]
[338814391,1726925440982,-150.0,0.00014059,2]
[338814393,1726925440992,-172.30626749,0.00014115,2]
[338814395,1726925441001,-15441.58750443,0.00014175,2]
[338814397,1726925441010,-564.6,0.000142,2]
[338814399,1726925441020,-15441.58750443,0.00014356,2]
[338814401,1726925441030,-172.30626749,0.00014377,2]
[338814403,1726925441040,-150.0,0.0001442,2]
[338814405,1726925441049,-1000.0,0.00014422,2]
[338814407,1726925441060,-829.97,0.00014462,2]
[338814409,1726925441070,-500.0,0.0001452,2]
[338814411,1726925441079,-446.30203878,0.0001452,2]
[338814413,1726925441089,-500.0,0.0001452,2]
[338814415,1726925441101,-189.412073,0.00014521,2]
[338814417,1726925441110,-15441.58750443,0.00014538,2]
[338814419,1726925441120,-413.15727776,0.0001457,2]
[338814421,1726925441129,-350.0,0.000146,3]
[338814423,1726925441139,-172.30626749,0.00014638,2]
[338814425,1726925441148,-500.0,0.00014673,2]
[338814427,1726925441160,-20727.6081,0.00014699,2]
[338814429,1726925441170,-226.48412703,0.00014699,2]
[338814431,1726925441180,-620.85473117,0.00014699,2]
[338814433,1726925441190,-500.0,0.00014699,2]
[338814435,1726925441200,-500.0,0.00014699,2]
[338814437,1726925441210,-189.91376388,0.00014699,2]
[338814439,1726925441220,-500.0,0.00014699,2]
[338814441,1726925441230,-500.0,0.00014699,2]
[338814443,1726925441239,-500.0,0.00014699,2]
[338814445,1726925441248,-1018.29425896,0.000147,2]
[338814447,1726925441260,-500.0,0.000147,2]
[338814449,1726925441270,-17574.4607,0.000147,2]
[338814451,1726925441280,-245000.0,0.000147,2]
[338814453,1726925441289,-15441.58750443,0.00014719,2]
[338814455,1726925441299,-150.0,0.00014727,2]
[338814457,1726925441308,-150.0,0.00014728,2]
[338814459,1726925441318,-150.0,0.0001473,2]
[338814461,1726925441329,-150.0,0.00014731,2]
[338814463,1726925441338,-150.0,0.00014732,2]
[338814465,1726925441349,-150.0,0.0001474,2]
[338814467,1726925441359,-150.0,0.0001474,2]
[338814469,1726925441369,-150.0,0.00014753,2]
[338814471,1726925441378,-150.0,0.00014757,2]
[338814473,1726925441387,-152.0,0.00014771,3]
[338814475,1726925441396,-155.56,0.00014771,2]
[338814477,1726925441405,-150.0,0.00014772,2]
[338814479,1726925441415,-150.0,0.0001478,2]
[338814481,1726925441424,-150.0,0.0001478,2]
[338814483,1726925441434,-150.0,0.00014782,2]
[338814485,1726925441444,-150.0,0.00014786,2]
[338814487,1726925441453,-150.0,0.00014786,2]
[338814489,1726925441462,-150.0,0.00014789,2]
[338814490,1726925441471,-58032.01595638,0.000148,2]
[338814492,1726925441481,-3500.0,0.000148,2]
[338814494,1726925441491,-263.514205,0.000148,2]
[338814496,1726925441500,-450.0,0.000148,4]
[338814498,1726925441510,-150.0,0.00014807,2]
[338814500,1726925441519,-150.0,0.00014809,2]
[338814502,1726925441528,-150.0,0.00014816,2]
[338814504,1726925441537,-150.0,0.00014827,2]
[338814505,1726925441547,-150.0,0.0001483,2]
[338814507,1726925441557,-150.0,0.00014833,2]
[338814509,1726925441566,-242.56593322,0.00014834,2]
[338814511,1726925441575,-150.0,0.00014838,2]
[338814513,1726925441585,-150.0,0.00014843,2]
[338814515,1726925441595,-150.0,0.00014849,2]
[338814517,1726925441604,-150.0,0.00014857,2]
[338814519,1726925441613,-150.0,0.00014857,2]
[338814521,1726925441626,-150.0,0.00014864,2]
[338814523,1726925441636,-150.0,0.00014865,2]
[338814525,1726925441645,-150.0,0.00014866,2]
[338814526,1726925441655,-500.0,0.00014879,2]
[338814528,1726925441664,-500.0,0.0001488,2]
[338814530,1726925441674,-2000.0,0.0001488,2]
[338814532,1726925441684,-500.0,0.0001488,2]
[338814534,1726925441694,-500.0,0.0001488,2]
[338814536,1726925441703,-200.0,0.0001488,2]
[338814538,1726925441712,-150.0,0.00014882,2]
[338814539,1726925441722,-150.0,0.00014885,2]
[338814541,1726925441733,-150.0,0.00014887,2]
[338814543,1726925441743,-150.0,0.00014891,2]
[338814545,1726925441753,-150.0,0.00014893,2]
[338814548,1726925441763,-150.0,0.00014895,2]
[338814550,1726925441772,-150.0,0.00014896,2]
[338814551,1726925441781,-518.880294,0.000149,2]
[338814553,1726925441792,-7500.0,0.000149,2]
[338814555,1726925441802,-3918.16145594,0.000149,2]
[338814557,1726925441811,-1000.0,0.000149,2]
[338814559,1726925441821,-152.79080492,0.000149,2]
[338814561,1726925441831,-450.65,0.000149,31]
[338814563,1726925441840,-450.65,0.000149,31]
[338814565,1726925441851,-450.65,0.000149,31]
[338814567,1726925441860,-450.65,0.000149,31]
[338814569,1726925441869,-450.65,0.000149,31]
[338814571,1726925441879,-450.65,0.000149,31]
[338814573,1726925441888,-450.65,0.000149,31]
[338814574,1726925441897,-450.65,0.000149,31]
[338814576,1726925441906,-450.65,0.000149,31]
[338814578,1726925441915,-450.65,0.000149,31]
[338814580,1726925441925,-450.65,0.000149,31]
[338814582,1726925441934,-450.65,0.000149,31]
[338814583,1726925441944,-450.65,0.000149,31]
[338814585,1726925441953,-450.65,0.000149,31]
[338814587,1726925441962,-450.65,0.000149,31]
[338814588,1726925441971,-450.65,0.000149,31]
[338814590,1726925441981,-15441.58750443,0.000149,2]
[338814592,1726925441991,-172.30626749,0.000149,2]
[338814594,1726925442000,-1000.0,0.000149,2]
[338814596,1726925442009,-915.0,0.000149,2]
[338814598,1726925442019,-6275.8262812,0.000149,2]
[338814600,1726925442029,-718.0,0.000149,2]
[338814602,1726925442038,-325.35261186,0.000149,2]
[338814603,1726925442048,-150.0,0.00014906,2]
[338814606,1726925442058,-278.408,0.00014909,2]
[338814608,1726925442068,-180.407,0.00014909,2]
[338814609,1726925442078,-150.0,0.00014909,2]
[338814612,1726925442089,-150.0,0.00014916,2]
[338814614,1726925442100,-150.0,0.00014921,2]
[338814616,1726925442112,-150.0,0.00014935,2]
[338814618,1726925442121,-150.0,0.00014935,2]
[338814620,1726925442131,-150.0,0.00014936,2]
[338814622,1726925442143,-150.0,0.00014949,2]
[338814624,1726925442153,-150.0,0.00014957,2]
[338814626,1726925442162,-150.0,0.00014973,2]
[338814628,1726925442173,-150.0,0.00014974,2]
[338814630,1726925442183,-171.0233313,0.00014985,2]
[338814632,1726925442192,-150.0,0.00014986,2]
[338814634,1726925442202,-532.0,0.00014989,2]
[338814636,1726925442211,-161.548991,0.0001499,2]
[338814637,1726925442220,-161.548991,0.0001499,2]
[338814639,1726925442229,-161.548991,0.0001499,2]
[338814641,1726925442238,-161.548991,0.0001499,2]
[338814643,1726925442248,-161.548991,0.0001499,2]
[338814645,1726925442258,-31729.84554042,0.0001499,2]
[338814647,1726925442268,-2043.843761,0.0001499,2]
[338814649,1726925442277,-1749.019795,0.0001499,2]
[338814651,1726925442286,-1454.1958289,0.0001499,2]
[338814653,1726925442296,-1159.3718629,0.0001499,2]
[338814655,1726925442305,-864.5478969,0.0001499,2]
[338814657,1726925442315,-379.1934184,0.0001499,2]
[338814659,1726925442325,-324.4948599,0.0001499,2]
[338814661,1726925442334,-269.7963014,0.0001499,2]
[338814663,1726925442343,-215.0977429,0.0001499,2]
[338814665,1726925442353,-160.3991844,0.0001499,2]
[338814667,1726925442362,-159.42565796,0.0001499,2]
[338814669,1726925442372,-161.548991,0.00014993,2]
[338814671,1726925442381,-2338.667727,0.00014993,2]
[338814673,1726925442390,-433.8919769,0.00014993,2]
[338814675,1726925442400,-158.713714,0.00014995,3]
[338814692,1726925442562,-46574.02767704,0.00014998,3]
[338814694,1726925442571,-186.39,0.00014999,2]
[338814696,1726925442580,-530.0,0.00014999,2]
[338814698,1726925442590,-150.0,0.00014999,2]
[338814700,1726925442599,-294.41895783,0.00014999,3]
[338814701,1726925442608,-496.4978638,0.00014999,3]
[338814704,1726925442620,-228.22751753,0.00015,2]
[338814705,1726925442631,-553331.40049033,0.00015,2]
[338814707,1726925442641,-5554653.20117585,0.00015,30]
[338814710,1726925442655,-64190.72961886,0.00015,30]
[338814712,1726925442667,-14721.09369351,0.00015,30]
[338814714,1726925442678,-1563.01664719,0.00015,30]
[338814716,1726925442690,-645.18180464,0.00015,30]
[338814777,1726925443279,-268.02886842,0.000145,2]
[338814778,1726925443291,-284.00225202,0.000145,2]
[338814779,1726925443320,-1514.06887956,0.000145,2]
[338814780,1726925443329,-33.1414802,0.00015,30]
[338814781,1726925443340,-3792.97760677,0.00015,30]
[338814782,1726925443352,-686.6132303,0.00015,30]
[338814783,1726925443363,-906.17357973,0.00015,30]
[338814784,1726925443378,-500.0,0.00015,30]
[338814785,1726925443437,-1309.9999992,0.00015,30]
[338814786,1726925443449,-20809.1764867,0.00015,30]
[338814787,1726925443460,-35305.23360127,0.00015,30]
[338814789,1726925443472,-34860.0,0.00015,30]
[338814791,1726925443483,-763.43869,0.00015,30]
[338814793,1726925443494,-8798.02859357,0.00015,30]
[338814797,1726925443516,-421.401,0.00015,30]
[338814799,1726925443527,-485.305,0.00015,30]
[338814801,1726925443538,-1309126.97507286,0.00015,30]
[338814806,1726925443574,-686.77,0.00015,30]
[338815073,1726925446182,-56264.80590004,0.00015,30]
[338815076,1726925446193,-2137.90186013,0.00015,30]
[338815082,1726925446240,-4834.0018473,0.00015,30]
[338815084,1726925446251,-4870.52344039,0.00015,30]
[338815108,1726925446464,-8420.39811809,0.00015,30]
[338817665,1726925474127,500.0,0.00011164,2]
[338817667,1726925516826,228.46,0.0001198,2]
[338817674,1726926085690,217.03,0.00011488,2]
[338817699,1726926577556,174.09433876,0.00011971,30]
[338817701,1726926631477,-524.55,0.00013291,2]
[338817702,1726926631487,-600.0,0.00013315,2]
[338817703,1726926631497,-897.41,0.00013364,2]
[338817704,1726926631506,-105.24164622,0.00013371,2]
[338817710,1726926637481,-88.24835378,0.00013371,2]
[338817711,1726926637491,-250.0,0.00013374,2]
[338817712,1726926637501,-408.23815723,0.00013391,2]
[338817713,1726926637512,-1839.93992941,0.00013391,2]
[338817714,1726926637524,-794.30206266,0.00013391,2]
[338817715,1726926637576,-582.75405,0.00013391,2]
[338817716,1726926637590,-262.14000012,0.00013391,2]
[338817717,1726926637635,-1362.14790047,0.00013391,2]
[338817718,1726926637692,-5001.8097,0.00013391,2]
[338817719,1726926637705,-5021.76820011,0.00013391,2]
[338817720,1726926637715,-637.89262546,0.00013391,2]
[338817721,1726926637724,-1189.15,0.00013416,2]
[338817722,1726926637735,-400.0,0.0001342,2]
[338817723,1726926637745,-546.76,0.0001342,2]
[338817724,1726926637755,-150.33732673,0.00013673,2]
[338817725,1726926637764,-499.99,0.00013673,2]
[338817726,1726926637774,-299.99,0.00013699,2]
[338817727,1726926637784,-150.0,0.00013699,2]
[338817728,1726926637795,-167.51,0.00013709,2]
[338817729,1726926637804,-217.03,0.00013752,2]
[338817730,1726926637814,-170.65,0.00013824,2]
[338817731,1726926637823,-500.0,0.0001384,2]
[338817732,1726926637834,-515.6669376,0.0001384,2]
[338817733,1726926637845,-500.0,0.0001384,2]
[338817734,1726926637854,-266.45343885,0.00013875,2]
[338817735,1726926637864,-317.14,0.000139,2]
[338817736,1726926637875,-1006.1,0.000139,2]
[338817738,1726926637884,-1000.0,0.000139,2]
[338817739,1726926637895,-400.0,0.000139,5]
[338817740,1726926637906,-500.0,0.00013904,2]
[338817741,1726926637915,-151.77,0.00013918,30]
[338817742,1726926637924,-165.26700901,0.00014,2]
[338817743,1726926637933,-800.0,0.00014,5]
[338817744,1726926637943,-167.25,0.00014028,2]
[338817745,1726926637952,-422.61,0.00014055,2]
[338817746,1726926637961,-150.0,0.00014059,2]
[338817747,1726926637971,-150.0,0.000141,2]
[338817748,1726926637981,-1200.0,0.000141,5]
[338817749,1726926637990,-702.84,0.00014165,2]
[338817751,1726926637999,-150.0,0.00014192,2]
[338817753,1726926638009,-579.43,0.000142,2]
[338817755,1726926638018,-1700.0,0.000142,5]
[338817756,1726926638027,-2100.0,0.000143,5]
[338817758,1726926638036,-400.0,0.000144,5]
[338817760,1726926638046,-150.0,0.0001442,2]
[338817762,1726926638055,-3000.0,0.000145,2]
[338817764,1726926638064,-400.0,0.000145,5]
[338817765,1726926638073,-500.0,0.0001452,2]
[338817767,1726926638083,-442.77683676,0.0001452,2]
[338817769,1726926638092,-153.4900986,0.00014553,2]
[338817771,1726926638102,-400.0,0.000146,5]
[338817773,1726926638111,-407.29277667,0.00014676,2]
[338817775,1726926638121,-1129.62717428,0.000147,2]
[338817776,1726926638130,-400.0,0.000147,5]
[338817778,1726926638139,-150.0,0.0001478,2]
[338817780,1726926638149,-170.470866,0.00014795,2]
[338817782,1726926638160,-3500.0,0.000148,2]
[338817784,1726926638169,-1000.0,0.000148,2]
[338817786,1726926638179,-626.2606,0.000148,2]
[338817787,1726926638188,-800.0,0.000148,5]
[338817789,1726926638200,-150.0,0.00014837,2]
[338817791,1726926638209,-702.84,0.00014874,2]
[338817793,1726926638219,-500.0,0.0001488,2]
[338817795,1726926638228,-2000.0,0.0001488,2]
[338817797,1726926638237,-500.0,0.0001488,2]
[338817798,1726926638247,-500.0,0.0001488,2]
[338817800,1726926638256,-500.0,0.00014899,2]
[338817801,1726926638265,-500.0,0.00014899,2]
[338817803,1726926638274,-500.0,0.00014899,2]
[338817805,1726926638284,-500.0,0.00014899,2]
[338817807,1726926638293,-500.0,0.00014899,2]
[338817809,1726926638303,-500.0,0.00014899,2]
[338817810,1726926638312,-500.0,0.00014899,2]
[338817812,1726926638321,-500.0,0.00014899,2]
[338817814,1726926638330,-7500.0,0.000149,2]
[338817816,1726926638339,-500.0,0.000149,2]
[338817818,1726926638352,-47523.70340152,0.000149,2]
[338817830,1726926638483,-384.30158449,0.000149,2]
[338817832,1726926638494,-333.53833866,0.000149,2]
[338817834,1726926638504,-51758.45667533,0.000149,2]
[338817836,1726926638514,-26434.26003733,0.000149,2]
[338817838,1726926638525,-570.23685725,0.000149,2]
[338818342,1726926643741,-868.00078551,0.000149,2]
[338818344,1726926643754,-1089.05208853,0.000149,2]
[338818346,1726926643765,-748.57520928,0.000149,2]
[338818348,1726926643776,-441.66001173,0.000149,2]
[338818353,1726926643815,-1309.97,0.000149,2]
[338818355,1726926643830,-4409.69574016,0.000149,2]
[338818358,1726926643841,-910.36522352,0.000149,2]
[338818360,1726926643853,-1115.09775736,0.000149,2]
[338818362,1726926643864,-666.45239455,0.000149,2]
[338818364,1726926643876,-557.38108761,0.000149,2]
[338818366,1726926643887,-2447.98619997,0.000149,2]
[338818369,1726926643902,-353.59275053,0.000149,2]
[338818371,1726926643913,-281.84391589,0.000149,2]
[338818373,1726926643924,-1529.43690522,0.000149,2]
[338818384,1726926644016,-201266.39303556,0.000149,2]
[338818385,1726926644026,-5080.56286891,0.000149,5]
[338818387,1726926644035,-378.58,0.000149,31]
[338818389,1726926644045,-378.58,0.000149,31]
[338818391,1726926644054,-378.58,0.000149,31]
[338818393,1726926644063,-378.58,0.000149,31]
[338818395,1726926644074,-378.58,0.000149,31]
[338818397,1726926644083,-378.58,0.000149,31]
[338818399,1726926644092,-378.58,0.000149,31]
[338818401,1726926644101,-378.58,0.000149,31]
[338818403,1726926644111,-378.58,0.000149,31]
[338818405,1726926644120,-378.58,0.000149,31]
[338818407,1726926644129,-378.58,0.000149,31]
[338818409,1726926644138,-378.58,0.000149,31]
[338818411,1726926644148,-378.58,0.000149,31]
[338818413,1726926644158,-378.58,0.000149,31]
[338818415,1726926644170,-378.58,0.000149,31]
[338818418,1726926644182,-378.58,0.000149,31]
[338818420,1726926644192,-151.16962534,0.000149,2]
[338818422,1726926644201,-1098.0,0.000149,2]
[338818424,1726926644212,-397.23485996,0.000149,2]
[338818426,1726926644221,-277.396,0.00014916,2]
[338818428,1726926644231,-180.40768768,0.00014916,2]
[338818430,1726926644241,-500.0,0.00014973,2]
[338818432,1726926644251,-600.0,0.00014979,2]
[338818434,1726926644260,-500.0,0.00014989,2]
[338818436,1726926644269,-500.0,0.00014989,2]
[338818438,1726926644278,-601.53094146,0.00014989,2]
[338818440,1726926644287,-332.9480862,0.00014989,2]
[338818442,1726926644296,-500.0,0.00014989,2]
[338818444,1726926644305,-500.0,0.00014989,2]
[338818446,1726926644314,-500.0,0.00014989,2]
[338818448,1726926644323,-500.0,0.00014989,2]
[338818450,1726926644333,-270246.659238,0.0001499,3]
[338818452,1726926644342,-2387.2738814,0.0001499,2]
[338818454,1726926644351,-2195.7543723,0.0001499,2]
[338818455,1726926644362,-2004.2348631,0.0001499,2]
[338818458,1726926644372,-1812.715354,0.0001499,2]
[338818460,1726926644381,-1621.1958449,0.0001499,2]
[338818462,1726926644390,-462.2518347,0.0001499,2]
[338818464,1726926644400,-525.4958547,0.0001499,2]
[338818466,1726926644409,-588.7398747,0.0001499,2]
[338818467,1726926644418,-651.9838947,0.0001499,2]
[338818469,1726926644427,-715.2279147,0.0001499,2]
[338818471,1726926644436,-2578.7933905,0.00014993,2]
[338818473,1726926644446,-300.24711666,0.00014993,2]
[338818475,1726926644455,-399.0078147,0.00014993,2]
[338818477,1726926644464,-151.98346748,0.00014999,2]
[338818479,1726926644474,-399.25325027,0.00014999,2]
[338818480,1726926644483,-500.0,0.00014999,2]
[338818482,1726926644492,-423.55461291,0.00014999,2]
[338818484,1726926644501,-500.0,0.00014999,2]
[338818486,1726926644510,-500.0,0.00014999,2]
[338818488,1726926644521,-608.44902952,0.00014999,2]
[338818490,1726926644529,-500.0,0.00014999,2]
[338818492,1726926644540,-500.0,0.00014999,2]
[338818494,1726926644550,-500.0,0.00014999,2]
[338818496,1726926644559,-500.0,0.00014999,2]
[338818498,1726926644567,-500.0,0.00014999,2]
[338818500,1726926644576,-500.0,0.00014999,2]
[338818502,1726926644585,-500.0,0.00014999,2]
[338818503,1726926644594,-472.54918065,0.00014999,2]
[338818505,1726926644603,-212.22698017,0.00015,2]
[338818507,1726926644612,-152.1930186,0.00015,2]
[338818509,1726926644622,-4529.2567779,0.00015,2]